{"text_format":"3","workbook":"xlsx","n_sheets":3,"sheets":["Začiatok","Rozpočet na darčeky a jeho s...","Údaje"],"not_rendered":{"charts":1,"defined_names":1},"read":"whole","date_system":"1900"}

{"sheet":"Začiatok","index":0,"n_rows":7,"n_cols":2,"rows_kept":7}
[null,"Informácie o šablóne"]
[null,"Pomocou tejto šablóny môžete zaznamenávať nákupy darčekov a sledovať ich v porovnaní s rozpočtom."]
[null,"Zadajte do tabuľky mená rodinných príslušníkov a priateľov, položky darčekov, plánované a minuté sumy, poznámky a vyberte príležitosť a mesiac udalosti."]
[null,"Graf mesačného prehľadu sa automaticky aktualizuje."]
[null,"Poznámka: "]
[null,"V hárku ROZPOČET NA DARČEKY A JEHO SLEDOVANIE sú v stĺpci A uvedené ďalšie pokyny. Tento text je zámerne skrytý. Ak chcete text odstrániť, vyberte stĺpec A a potom stlačte kláves ODSTRÁNIŤ. Ak chcete text zobraziť, vyberte stĺpec A a potom zmeňte farbu písma."]
[null,"Ak chcete získať ďalšie informácie o tabuľke, v tabuľke stlačte kláves SHIFT a potom kláves F10, vyberte možnosť TABUĽKA a potom vyberte položku ALTERNATÍVNY TEXT."]

{"sheet":"Rozpočet na darčeky a jeho s...","index":1,"n_rows":10,"n_cols":13,"rows_kept":10,"merged":[[0,1,0,4],[0,5,0,12],[1,1,1,2],[2,1,2,12],[3,1,3,3]]}
["V tomto hárku si vytvorte osobný rozpočet na darčeky a nástroj na jeho sledovanie. V bunke napravo je nadpis hárka a v bunke F1 je informačný tip. V bunkách v tomto stĺpci sú užitočné pokyny na používanie tohto hárka.","Rozpočet na darčeky a jeho sledovanie",{"$nulls":3},"Vyplňte čo najviac údajov na začiatku každého nového roka. Zadajte mená členov rodiny a priateľov, vyberte príležitosť na darčeky, vyberte mesiac udalosti a zadajte, koľko chcete minúť. Každá osoba sa môže v tabuľke zobraziť viackrát pri každej inej príležitosti (narodeniny, sviatok, oslava narodenia dieťaťa atď.)."]
["V bunke napravo je označenie Mesačný prehľad a v bunke D2 je informačný tip.","Mesačný prehľad",null,"Pomocou grafu sa môžete pozrieť na nadchádzajúce mesiace, aby ste mohli plánovať dopredu. Zaznamenávajte svoje nákupy a sledujte ich v porovnaní s rozpočtom."]
["V bunke napravo je stĺpcový graf pre rozpočtové čiastky s prekrytím čiarového grafu pre minuté čiastky.","V tejto bunke je stĺpcový graf pre rozpočtové čiastky s prekrytím čiarového grafu pre minuté čiastky."]
["V bunke napravo je označenie Rozpočet na darčeky a jeho sledovanie.","Rozpočet na darčeky a jeho sledovanie"]
["Do tabuľky Sledovanie rozpočtu začínajúcej sa v bunke napravo zadajte podrobnosti.","Kto","Príležitosť","Mesiac","Suma\nrozpočet","Suma\nminuté","Darček","Prepojenie na darček","V obchode/\nOnline","Kúpené?","Zabalené?","Doručené?","Poznámky"]
[null,"Meno 1","Narodeniny","Jún",{"v":50,"d":"50 EUR"},{"v":30,"d":"30 EUR"},"Topánky","Predávajúci","Online","Áno","Nie","Nie","16.6., lístky do kina"]
[null,"Meno 2","Výročia","Apríl",{"v":20,"d":"20 EUR"},{"v":20,"d":"20 EUR"},"Mačka","Predávajúci","V obchode","Nie","Nie","Nie","Spomenul, že má rád psy"]
[null,"Meno 3","Sviatky","Júl",{"v":50,"d":"50 EUR"},{"v":70,"d":"70 EUR"},"Slúchadlá","Predávajúci","Online","Nie","Nie","Nie","Veci na internát"]
[null,"Meno 4","Narodeniny","Január",{"v":20,"d":"20 EUR"},{"v":30,"d":"30 EUR"},"Hra","Predávajúci","V obchode","Áno","Áno","Áno"]
[null,"Meno 5","Svadby","Jún",{"v":100,"d":"100 EUR"},{"v":150,"d":"150 EUR"},"Krištáľová váza","Predávajúci","V obchode","Áno","Áno","Nie"]

{"sheet":"Údaje","index":2,"n_rows":13,"n_cols":8,"rows_kept":13,"hidden":true}
["Príležitosti",null,"Dátum","Dátum","Plánovaná čiastka\nNarodeniny","Plánovaná čiastka\nSviatky","Plánovaná čiastka\nIné","Minutá čiastka"]
["Narodeniny",null,"Január","Jan",{"$f":"SUMIFS(SledovanieRozpočtu[Suma\nrozpočet],SledovanieRozpočtu[Mesiac],\"Január\",SledovanieRozpočtu[Príležitosť],\"Narodeniny\")","v":{"v":20,"d":"20 EUR"}},{"$f":"SUMIFS(SledovanieRozpočtu[Suma\nrozpočet],SledovanieRozpočtu[Mesiac],\"Január\",SledovanieRozpočtu[Príležitosť],\"Sviatky\")","v":{"v":0,"d":"0 EUR"}},{"$f":"SUMIFS(SledovanieRozpočtu[Suma\nrozpočet],SledovanieRozpočtu[Mesiac],\"Január\",SledovanieRozpočtu[Príležitosť],\"<>Sviatky\",SledovanieRozpočtu[Príležitosť],\"<>Narodeniny\")","v":{"v":0,"d":"0 EUR"}},{"$f":"SUMIFS(SledovanieRozpočtu[Suma\nminuté],SledovanieRozpočtu[Mesiac],\"Január\")","v":{"v":30,"d":"30 EUR"}}]
["Sviatky",null,"Február","Feb",{"$f":"SUMIFS(SledovanieRozpočtu[Suma\nrozpočet],SledovanieRozpočtu[Mesiac],\"Február\",SledovanieRozpočtu[Príležitosť],\"Narodeniny\")","v":{"v":0,"d":"0 EUR"}},{"$f":"SUMIFS(SledovanieRozpočtu[Suma\nrozpočet],SledovanieRozpočtu[Mesiac],\"Február\",SledovanieRozpočtu[Príležitosť],\"Sviatky\")","v":{"v":0,"d":"0 EUR"}},{"$f":"SUMIFS(SledovanieRozpočtu[Suma\nrozpočet],SledovanieRozpočtu[Mesiac],\"Február\",SledovanieRozpočtu[Príležitosť],\"<>Sviatky\",SledovanieRozpočtu[Príležitosť],\"<>Narodeniny\")","v":{"v":0,"d":"0 EUR"}},{"$f":"SUMIFS(SledovanieRozpočtu[Suma\nminuté],SledovanieRozpočtu[Mesiac],\"Február\")","v":{"v":0,"d":"0 EUR"}}]
["Výročia",null,"Marec","Mar",{"$f":"SUMIFS(SledovanieRozpočtu[Suma\nrozpočet],SledovanieRozpočtu[Mesiac],\"Marec\",SledovanieRozpočtu[Príležitosť],\"Narodeniny\")","v":{"v":0,"d":"0 EUR"}},{"$f":"SUMIFS(SledovanieRozpočtu[Suma\nrozpočet],SledovanieRozpočtu[Mesiac],\"Marec\",SledovanieRozpočtu[Príležitosť],\"Sviatky\")","v":{"v":0,"d":"0 EUR"}},{"$f":"SUMIFS(SledovanieRozpočtu[Suma\nrozpočet],SledovanieRozpočtu[Mesiac],\"Marec\",SledovanieRozpočtu[Príležitosť],\"<>Sviatky\",SledovanieRozpočtu[Príležitosť],\"<>Narodeniny\")","v":{"v":0,"d":"0 EUR"}},{"$f":"SUMIFS(SledovanieRozpočtu[Suma\nminuté],SledovanieRozpočtu[Mesiac],\"Marec\")","v":{"v":0,"d":"0 EUR"}}]
["Svadby",null,"Apríl","Apr",{"$f":"SUMIFS(SledovanieRozpočtu[Suma\nrozpočet],SledovanieRozpočtu[Mesiac],\"Apríl\",SledovanieRozpočtu[Príležitosť],\"Narodeniny\")","v":{"v":0,"d":"0 EUR"}},{"$f":"SUMIFS(SledovanieRozpočtu[Suma\nrozpočet],SledovanieRozpočtu[Mesiac],\"Apríl\",SledovanieRozpočtu[Príležitosť],\"Sviatky\")","v":{"v":0,"d":"0 EUR"}},{"$f":"SUMIFS(SledovanieRozpočtu[Suma\nrozpočet],SledovanieRozpočtu[Mesiac],\"Apríl\",SledovanieRozpočtu[Príležitosť],\"<>Sviatky\",SledovanieRozpočtu[Príležitosť],\"<>Narodeniny\")","v":{"v":20,"d":"20 EUR"}},{"$f":"SUMIFS(SledovanieRozpočtu[Suma\nminuté],SledovanieRozpočtu[Mesiac],\"Apríl\")","v":{"v":20,"d":"20 EUR"}}]
["Lúčenie so slobodou",null,"Máj","Máj",{"$f":"SUMIFS(SledovanieRozpočtu[Suma\nrozpočet],SledovanieRozpočtu[Mesiac],\"Máj\",SledovanieRozpočtu[Príležitosť],\"Narodeniny\")","v":{"v":0,"d":"0 EUR"}},{"$f":"SUMIFS(SledovanieRozpočtu[Suma\nrozpočet],SledovanieRozpočtu[Mesiac],\"Máj\",SledovanieRozpočtu[Príležitosť],\"Sviatky\")","v":{"v":0,"d":"0 EUR"}},{"$f":"SUMIFS(SledovanieRozpočtu[Suma\nrozpočet],SledovanieRozpočtu[Mesiac],\"Máj\",SledovanieRozpočtu[Príležitosť],\"<>Sviatky\",SledovanieRozpočtu[Príležitosť],\"<>Narodeniny\")","v":{"v":0,"d":"0 EUR"}},{"$f":"SUMIFS(SledovanieRozpočtu[Suma\nminuté],SledovanieRozpočtu[Mesiac],\"Máj\")","v":{"v":0,"d":"0 EUR"}}]
["Oslava narodenia dieťaťa",null,"Jún","Jún",{"$f":"SUMIFS(SledovanieRozpočtu[Suma\nrozpočet],SledovanieRozpočtu[Mesiac],\"Jún\",SledovanieRozpočtu[Príležitosť],\"Narodeniny\")","v":{"v":50,"d":"50 EUR"}},{"$f":"SUMIFS(SledovanieRozpočtu[Suma\nrozpočet],SledovanieRozpočtu[Mesiac],\"Jún\",SledovanieRozpočtu[Príležitosť],\"Sviatky\")","v":{"v":0,"d":"0 EUR"}},{"$f":"SUMIFS(SledovanieRozpočtu[Suma\nrozpočet],SledovanieRozpočtu[Mesiac],\"Jún\",SledovanieRozpočtu[Príležitosť],\"<>Sviatky\",SledovanieRozpočtu[Príležitosť],\"<>Narodeniny\")","v":{"v":100,"d":"100 EUR"}},{"$f":"SUMIFS(SledovanieRozpočtu[Suma\nminuté],SledovanieRozpočtu[Mesiac],\"Jún\")","v":{"v":180,"d":"180 EUR"}}]
["Promócie",null,"Júl","Júl",{"$f":"SUMIFS(SledovanieRozpočtu[Suma\nrozpočet],SledovanieRozpočtu[Mesiac],\"Júl\",SledovanieRozpočtu[Príležitosť],\"Narodeniny\")","v":{"v":0,"d":"0 EUR"}},{"$f":"SUMIFS(SledovanieRozpočtu[Suma\nrozpočet],SledovanieRozpočtu[Mesiac],\"Júl\",SledovanieRozpočtu[Príležitosť],\"Sviatky\")","v":{"v":50,"d":"50 EUR"}},{"$f":"SUMIFS(SledovanieRozpočtu[Suma\nrozpočet],SledovanieRozpočtu[Mesiac],\"Júl\",SledovanieRozpočtu[Príležitosť],\"<>Sviatky\",SledovanieRozpočtu[Príležitosť],\"<>Narodeniny\")","v":{"v":0,"d":"0 EUR"}},{"$f":"SUMIFS(SledovanieRozpočtu[Suma\nminuté],SledovanieRozpočtu[Mesiac],\"Júl\")","v":{"v":70,"d":"70 EUR"}}]
["Iné",null,"August","Aug",{"$f":"SUMIFS(SledovanieRozpočtu[Suma\nrozpočet],SledovanieRozpočtu[Mesiac],\"August\",SledovanieRozpočtu[Príležitosť],\"Narodeniny\")","v":{"v":0,"d":"0 EUR"}},{"$f":"SUMIFS(SledovanieRozpočtu[Suma\nrozpočet],SledovanieRozpočtu[Mesiac],\"August\",SledovanieRozpočtu[Príležitosť],\"Sviatky\")","v":{"v":0,"d":"0 EUR"}},{"$f":"SUMIFS(SledovanieRozpočtu[Suma\nrozpočet],SledovanieRozpočtu[Mesiac],\"August\",SledovanieRozpočtu[Príležitosť],\"<>Sviatky\",SledovanieRozpočtu[Príležitosť],\"<>Narodeniny\")","v":{"v":0,"d":"0 EUR"}},{"$f":"SUMIFS(SledovanieRozpočtu[Suma\nminuté],SledovanieRozpočtu[Mesiac],\"August\")","v":{"v":0,"d":"0 EUR"}}]
[null,null,"September","Sep",{"$f":"SUMIFS(SledovanieRozpočtu[Suma\nrozpočet],SledovanieRozpočtu[Mesiac],\"September\",SledovanieRozpočtu[Príležitosť],\"Narodeniny\")","v":{"v":0,"d":"0 EUR"}},{"$f":"SUMIFS(SledovanieRozpočtu[Suma\nrozpočet],SledovanieRozpočtu[Mesiac],\"September\",SledovanieRozpočtu[Príležitosť],\"Sviatky\")","v":{"v":0,"d":"0 EUR"}},{"$f":"SUMIFS(SledovanieRozpočtu[Suma\nrozpočet],SledovanieRozpočtu[Mesiac],\"September\",SledovanieRozpočtu[Príležitosť],\"<>Sviatky\",SledovanieRozpočtu[Príležitosť],\"<>Narodeniny\")","v":{"v":0,"d":"0 EUR"}},{"$f":"SUMIFS(SledovanieRozpočtu[Suma\nminuté],SledovanieRozpočtu[Mesiac],\"September\")","v":{"v":0,"d":"0 EUR"}}]
[null,null,"Október","Okt",{"$f":"SUMIFS(SledovanieRozpočtu[Suma\nrozpočet],SledovanieRozpočtu[Mesiac],\"Október\",SledovanieRozpočtu[Príležitosť],\"Narodeniny\")","v":{"v":0,"d":"0 EUR"}},{"$f":"SUMIFS(SledovanieRozpočtu[Suma\nrozpočet],SledovanieRozpočtu[Mesiac],\"Október\",SledovanieRozpočtu[Príležitosť],\"Sviatky\")","v":{"v":0,"d":"0 EUR"}},{"$f":"SUMIFS(SledovanieRozpočtu[Suma\nrozpočet],SledovanieRozpočtu[Mesiac],\"Október\",SledovanieRozpočtu[Príležitosť],\"<>Sviatky\",SledovanieRozpočtu[Príležitosť],\"<>Narodeniny\")","v":{"v":0,"d":"0 EUR"}},{"$f":"SUMIFS(SledovanieRozpočtu[Suma\nminuté],SledovanieRozpočtu[Mesiac],\"Október\")","v":{"v":0,"d":"0 EUR"}}]
[null,null,"November","Nov",{"$f":"SUMIFS(SledovanieRozpočtu[Suma\nrozpočet],SledovanieRozpočtu[Mesiac],\"November\",SledovanieRozpočtu[Príležitosť],\"Narodeniny\")","v":{"v":0,"d":"0 EUR"}},{"$f":"SUMIFS(SledovanieRozpočtu[Suma\nrozpočet],SledovanieRozpočtu[Mesiac],\"November\",SledovanieRozpočtu[Príležitosť],\"Sviatky\")","v":{"v":0,"d":"0 EUR"}},{"$f":"SUMIFS(SledovanieRozpočtu[Suma\nrozpočet],SledovanieRozpočtu[Mesiac],\"November\",SledovanieRozpočtu[Príležitosť],\"<>Sviatky\",SledovanieRozpočtu[Príležitosť],\"<>Narodeniny\")","v":{"v":0,"d":"0 EUR"}},{"$f":"SUMIFS(SledovanieRozpočtu[Suma\nminuté],SledovanieRozpočtu[Mesiac],\"November\")","v":{"v":0,"d":"0 EUR"}}]
[null,null,"December","Dec",{"$f":"SUMIFS(SledovanieRozpočtu[Suma\nrozpočet],SledovanieRozpočtu[Mesiac],\"December\",SledovanieRozpočtu[Príležitosť],\"Narodeniny\")","v":{"v":0,"d":"0 EUR"}},{"$f":"SUMIFS(SledovanieRozpočtu[Suma\nrozpočet],SledovanieRozpočtu[Mesiac],\"December\",SledovanieRozpočtu[Príležitosť],\"Sviatky\")","v":{"v":0,"d":"0 EUR"}},{"$f":"SUMIFS(SledovanieRozpočtu[Suma\nrozpočet],SledovanieRozpočtu[Mesiac],\"December\",SledovanieRozpočtu[Príležitosť],\"<>Sviatky\",SledovanieRozpočtu[Príležitosť],\"<>Narodeniny\")","v":{"v":0,"d":"0 EUR"}},{"$f":"SUMIFS(SledovanieRozpočtu[Suma\nminuté],SledovanieRozpočtu[Mesiac],\"December\")","v":{"v":0,"d":"0 EUR"}}]